bitfinex/quotes_ETHUSD_20260121
["timestamp","ask_amount","ask_price","bid_price","bid_amount"]
[1768979388890,4.08703522,2986.5,2985.8,10.576599]
[1768979389714,4.08703522,2986.5,2986.0,0.002]
[1768979389918,4.08703522,2986.5,2986.0,8.67803799]
[1768979390115,4.08703522,2986.5,2986.0,9.23303799]
[1768979391206,0.40870352,2986.4,2986.0,9.23303799]
[1768979392230,3.14769873,2986.1,2985.8,1.667]
[1768979392441,3.70069873,2986.1,2985.5,2.22]
[1768979392636,0.09359752,2985.8,2985.5,2.22]
[1768979393126,3.24027609,2985.8,2985.5,2.22]
[1768979393327,3.14667857,2985.7,2985.5,2.22]
[1768979395531,3.14667857,2985.7,2985.5,2.775]
[1768979396209,0.09359752,2985.8,2985.5,2.775]
[1768979397301,0.02251135,2985.4,2985.3,0.38885365]
[1768979397919,0.02251135,2985.4,2985.3,0.94385365]
[1768979400305,0.3435781,2985.4,2985.2,1.665]
[1768979400515,1.57451052,2985.2,2984.6,8.67803799]
[1768979401943,1.6334239,2985.1,2984.5,9.23103799]
[1768979402095,0.553,2985.0,2984.5,9.23103799]
[1768979402609,2.1864239,2985.0,2984.5,9.23103799]
[1768979402809,2.1864239,2985.0,2984.5,9.78603799]
[1768979405399,2.1864239,2985.0,2984.5,10.34103799]
[1768979406230,1.62919491,2984.9,2984.5,1.665]
[1768979406612,1.8474144,2984.9,2984.3,8.67603799]
[1768979407003,1.8474144,2984.9,2984.2,9.78603799]
[1768979407414,1.62919491,2984.9,2984.2,9.78603799]
[1768979407840,1.62919491,2984.9,2984.2,10.34103799]
[1768979409536,1.62919491,2984.9,2984.0,1.11]
[1768979409537,1.65887104,2984.6,2984.0,2e-08]
[1768979409703,0.553,2984.5,2984.0,2e-08]
[1768979410111,0.553,2984.5,2984.0,1e-08]
[1768979410516,4.85218538,2984.4,2983.4,8.67603799]
[1768979410716,0.06010116,2984.2,2983.3,1.11]
[1768979410968,0.06010116,2984.0,2983.3,1.11]
[1768979411722,0.06010116,2984.0,2983.0,8.67803799]
[1768979412542,0.06010116,2984.0,2983.0,9.23303799]
[1768979414351,0.06010116,2984.0,2983.5,0.002]
[1768979414658,0.11593421,2983.8,2983.0,0.557]
[1768979414855,0.11913418,2983.6,2983.3,0.002]
[1768979415058,0.11913418,2983.6,2983.1,8.67603799]
[1768979417458,0.11913418,2983.6,2983.1,9.23103799]
[1768979417748,0.553,2983.7,2983.1,9.23103799]
[1768979417963,0.06062764,2983.6,2983.1,9.23103799]
[1768979418261,0.06062764,2983.6,2983.1,10.26534179]
[1768979419932,0.06062764,2983.6,2983.1,10.82034179]
[1768979421530,0.06062764,2983.6,2983.1,9.78603799]
[1768979422535,0.06062764,2983.6,2983.1,10.34103799]
[1768979424971,0.06062764,2983.6,2983.1,10.89603799]
[1768979427353,0.06062764,2983.6,2983.1,11.45103799]
[1768979427676,0.06062764,2983.6,2983.3,0.002]
[1768979427973,0.06062764,2983.6,2983.1,11.45103799]
[1768979428760,0.06062764,2983.6,2983.1,1e-08]
[1768979428980,0.13105708,2983.5,2983.1,1e-08]
[1768979429280,0.08915998,2983.4,2983.1,1e-08]
[1768979429645,0.0418971,2983.5,2983.1,0.55500001]
[1768979429843,0.13733387,2983.5,2983.0,7.70020639]
[1768979430281,0.0141199,2983.1,2983.0,0.98579037]
[1768979430581,0.0141199,2983.1,2982.8,1.112]
[1768979430768,0.0141199,2983.1,2982.9,6.75306592]
[1768979430975,0.0141199,2983.1,2982.9,6.67928256]
[1768979431175,0.0141199,2983.1,2982.9,3.32194119]
[1768979432075,0.0141199,2983.1,2982.9,3.87694119]
[1768979434652,0.0141199,2983.1,2982.9,4.43194119]
[1768979434854,0.0141199,2983.1,2982.9,10.52967701]
[1768979437351,0.0141199,2983.1,2982.9,11.08467701]
[1768979439797,0.0141199,2983.1,2982.9,11.63967701]
[1768979442264,0.0141199,2983.1,2982.9,12.19467701]
[1768979443787,9.59406186,2983.6,2983.0,9.41967701]
[1768979443987,9.59406186,2984.4,2983.1,9.41967701]
[1768979444200,9.59406186,2984.2,2983.1,9.41967701]
[1768979444678,9.59406186,2984.2,2983.1,9.97467701]
[1768979444877,10.60886805,2984.2,2983.3,9.41967701]
[1768979447376,10.60886805,2984.2,2983.3,9.97467701]
[1768979449498,9.71977005,2984.1,2983.3,9.97467701]
[1768979449862,9.71977005,2984.1,2983.3,10.52967701]
[1768979451796,9.16677005,2984.0,2983.3,10.52967701]
[1768979452571,0.554,2983.9,2983.4,9.68244929]
[1768979453980,9.71977005,2983.9,2983.4,9.68244929]
[1768979454910,9.71977005,2983.9,2983.4,10.23744929]
[1768979458413,9.71977005,2983.9,2983.4,10.79244929]
[1768979459616,9.71977005,2983.9,2983.4,1.06]
[1768979459920,9.25313686,2983.4,2983.1,0.555]
[1768979460894,9.25313686,2983.4,2983.1,1.11]
[1768979461294,0.08736681,2983.4,2983.1,1.11]
[1768979461594,0.08736681,2983.4,2983.1,10.79244929]
[1768979461790,0.013839,2983.4,2983.1,10.74244929]
[1768979463818,9.17960905,2983.4,2983.1,1.615]
[1768979465136,9.17960905,2983.4,2982.7,1.11]
[1768979465137,9.16577005,2983.2,2982.7,1.11]
[1768979465319,9.16577005,2983.2,2982.2,10.23944929]
[1768979466146,9.16577005,2983.2,2982.2,10.79444929]
[1768979466330,9.16577005,2982.9,2982.2,1.112]
[1768979466630,9.16577005,2982.7,2982.2,10.79444929]
[1768979468702,9.16577005,2982.7,2982.2,11.34944929]
[1768979469031,9.16577005,2982.7,2982.2,1.667]
[1768979469811,10.13774706,2982.7,2982.2,1.667]
[1768979470132,9.16577005,2982.6,2982.0,1.66698767]
[1768979471106,9.16577005,2982.6,2981.5,1.111]
[1768979471107,8.44250242,2981.6,2981.5,0.557]
[1768979471327,8.44250242,2981.6,2981.2,1.665]
[1768979473025,8.44250242,2981.6,2980.9,9.68244929]
[1768979473217,7.97242647,2981.4,2980.8,9.68444929]
[1768979473546,7.97242647,2981.2,2980.8,0.002]
[1768979473722,7.97242647,2981.2,2980.8,0.557]
[1768979474041,7.97242647,2981.2,2980.8,10.23944929]
[1768979475342,0.554,2981.3,2980.8,10.23944929]
[1768979475711,8.57934271,2981.3,2980.8,10.23944929]
[1768979476253,8.57934271,2981.3,2980.8,10.79444929]
[1768979478608,8.57934271,2981.3,2980.8,11.34944929]
[1768979480924,8.57934271,2981.3,2980.8,11.90444929]
[1768979481341,9.4776511,2981.3,2980.8,11.90444929]
[1768979481834,9.4776511,2981.3,2980.8,2.222]
[1768979483541,9.4776511,2981.3,2980.6,9.56572535]
[1768979484512,0.554,2981.3,2980.6,9.56572535]
[1768979484711,0.04190545,2981.4,2980.6,9.56572535]
[1768979484944,0.554,2981.3,2980.6,9.56572535]
[1768979485717,0.59590545,2981.3,2980.6,10.12072535]
[1768979485917,8.75309161,2981.3,2980.6,10.12072535]
[1768979487319,0.89965024,2981.5,2980.9,9.56572535]
[1768979487523,8.45005835,2981.9,2980.9,9.23770872]
[1768979487849,0.554,2981.8,2980.9,9.23770872]
[1768979488053,9.10414882,2981.8,2980.9,9.79270872]
[1768979490843,9.10414882,2981.8,2980.9,10.34770872]
[1768979491049,9.10414882,2981.8,2981.0,9.56572535]
[1768979491931,0.554,2981.7,2981.0,9.56572535]
[1768979492257,8.59950007,2982.2,2981.0,9.56572535]
[1768979492565,0.554,2982.1,2981.1,9.59927001]
[1768979492730,0.554,2982.1,2981.1,3.35438324]
[1768979492931,0.554,2982.1,2981.2,10.44275701]
[1768979493449,0.554,2982.1,2981.2,10.99775701]
[1768979495765,9.19801679,2982.1,2981.2,10.99775701]
[1768979495965,0.554,2982.0,2981.2,11.55275701]
[1768979496143,9.19801679,2982.0,2981.2,11.55275701]
[1768979498569,9.19801679,2982.0,2981.2,2.54203166]
[1768979498773,9.19801679,2982.0,2981.3,9.56572535]
[1768979498961,10.11781847,2982.0,2981.3,9.56572535]
[1768979499346,0.001,2981.8,2981.3,9.56572535]
[1768979502071,8.70567543,2982.6,2981.4,9.56572535]
[1768979502370,9.30258088,2982.5,2981.4,9.56572535]
[1768979502569,9.26067543,2982.5,2981.4,9.56572535]
[1768979502882,9.26067543,2982.5,2981.6,9.56572535]
[1768979502883,8.70667543,2982.5,2981.6,9.56572535]
[1768979503055,8.71639782,2982.8,2981.8,9.56572535]
[1768979503380,8.71639782,2982.7,2981.8,9.56572535]
[1768979503582,0.554,2982.6,2981.8,9.56572535]
[1768979503743,0.554,2982.5,2981.8,9.56572535]
[1768979504269,0.554,2982.5,2981.8,10.12072535]
[1768979504442,0.554,2982.5,2982.0,9.56572535]
[1768979504645,2.8035626,2981.8,2981.6,9.56572535]
[1768979504844,2.8035626,2981.8,2981.0,3.35457012]
[1768979504845,2.8035626,2981.8,2981.5,9.56572535]
[1768979505678,8.73533795,2982.1,2981.5,9.56572535]
[1768979505679,0.554,2982.2,2981.5,9.56572535]
[1768979506371,10.31863103,2982.2,2981.5,9.56572535]
[1768979506737,10.31863103,2982.2,2981.5,10.12072535]
[1768979507145,10.31863103,2982.2,2981.7,9.58132775]
[1768979507469,0.554,2982.3,2981.9,9.58132775]
[1768979509482,0.554,2982.3,2981.9,10.13632775]
[1768979510861,0.554,2982.3,2981.9,0.555]
[1768979510862,10.36053648,2982.3,2981.9,0.555]
[1768979511091,1.03605365,2982.2,2981.5,10.13632775]
[1768979511295,9.76463103,2982.1,2981.5,10.13632775]
[1768979511587,9.76563103,2982.1,2981.5,10.13632775]
[1768979511753,9.76563103,2982.1,2981.5,10.69132775]
[1768979514493,9.76563103,2982.1,2981.5,11.24632775]
[1768979516269,9.76463103,2981.9,2981.5,1.665]
[1768979516468,9.76463103,2981.9,2981.5,1e-08]
[1768979516780,9.76463103,2981.9,2981.2,0.555]
[1768979516781,9.76463103,2981.6,2981.2,0.555]
[1768979516983,9.76463103,2981.4,2981.2,0.43571155]
[1768979517185,10.31863103,2981.5,2981.2,0.43571155]
[1768979517503,11.83704289,2981.5,2981.2,0.43571155]
[1768979518483,11.83704289,2981.5,2980.9,10.69132775]
[1768979519274,11.83704289,2981.5,2980.9,11.24632775]
[1768979520279,11.83704289,2981.5,2980.9,1.665]
[1768979521603,11.83704289,2981.5,2980.9,11.24632775]
[1768979521770,11.83704289,2981.5,2980.9,11.80132775]
[1768979521971,10.94833532,2981.4,2980.9,11.80132775]
[1768979523095,10.94833532,2981.4,2981.1,0.002]
[1768979523402,10.94833532,2981.4,2980.9,11.80132775]
[1768979523600,10.94833532,2981.4,2980.9,11.80332775]
[1768979524309,1.51841186,2981.5,2980.9,11.80332775]
[1768979524526,0.554,2981.4,2981.0,9.58132775]
[1768979524683,0.554,2981.6,2981.0,9.58132775]
[1768979524877,10.31863103,2981.6,2981.0,9.58132775]
[1768979527012,10.31863103,2981.6,2981.0,10.13632775]
[1768979528907,0.554,2981.7,2981.0,11.42786053]
[1768979529112,10.31863103,2981.7,2981.0,11.42786053]
[1768979529618,10.31863103,2981.7,2981.1,9.58132775]
[1768979531921,10.31863103,2981.7,2981.1,10.13632775]
[1768979532724,9.76463103,2981.7,2981.1,10.13632775]
[1768979532899,10.31863103,2981.7,2981.1,10.13632775]
[1768979534340,0.001,2981.9,2981.3,9.58132775]
[1768979535459,0.001,2981.5,2981.3,9.58132775]
[1768979535669,0.001,2981.9,2981.2,9.4061944]
[1768979537028,0.001,2981.9,2981.2,9.9611944]
[1768979537673,0.001,2981.9,2981.3,9.4061944]
[1768979537822,0.001,2981.9,2981.5,9.4061944]
[1768979539649,0.001,2981.9,2981.5,9.9611944]
[1768979539846,9.29983811,2981.9,2981.5,0.555]
[1768979540046,9.29883811,2981.7,2981.5,0.555]
[1768979540556,10.22882192,2981.7,2981.5,0.555]
[1768979540864,9.35991409,2981.5,2981.2,0.555]
[1768979542176,9.35991409,2981.5,2981.2,1.11]
[1768979542476,9.35991409,2981.5,2980.9,2.777]
[1768979542477,9.29883811,2981.3,2980.9,1e-08]
[1768979542690,9.29883811,2981.1,2980.9,1e-08]
[1768979544592,9.29883811,2981.1,2980.9,0.55500001]
[1768979544800,9.29883811,2981.1,2980.8,1e-08]
[1768979547001,2.80497698,2980.6,2980.5,0.557]
[1768979547170,2.80497698,2980.6,2980.5,9.9631944]
[1768979550259,2.80497698,2980.6,2980.5,10.5181944]
[1768979552096,9.29983811,2981.0,2980.5,10.5181944]
[1768979552398,10.37700518,2981.0,2980.5,10.5181944]
[1768979552597,10.37700518,2981.0,2980.5,1.667]
[1768979552765,10.37700518,2981.0,2980.5,11.0731944]
[1768979553108,10.37700518,2981.0,2980.5,8.26821741]
[1768979553662,10.93100518,2981.0,2980.5,8.26821741]
[1768979555189,10.93100518,2981.0,2980.5,8.82321741]
[1768979555497,10.37700518,2981.0,2980.5,8.82321741]
[1768979556908,9.29883811,2980.8,2980.5,0.555]
[1768979557067,9.29883811,2980.6,2980.0,9.4061944]
[1768979557630,9.29883811,2980.6,2980.0,9.9611944]
[1768979557921,10.77067068,2980.6,2980.0,9.9611944]
[1768979559205,10.77067068,2980.6,2980.0,0.555]
[1768979559404,10.77067068,2980.6,2980.2,0.002]
[1768979559704,9.29883811,2980.3,2980.0,0.555]
[1768979560032,9.29883811,2980.3,2980.0,0.557]
[1768979560241,10.22882192,2980.3,2980.0,0.555]
[1768979560396,10.22882192,2980.3,2979.7,9.40815714]
[1768979560889,10.22882192,2980.3,2979.6,11.0711944]
[1768979561084,10.22882192,2980.3,2979.6,1.665]
[1768979561290,10.22882192,2980.3,2979.4,0.002]
[1768979561291,9.29883811,2980.0,2979.4,0.002]
[1768979561609,9.29883811,2979.7,2979.1,9.9631944]
[1768979561783,9.29883811,2979.7,2979.1,0.557]
[1768979561985,2.80466291,2979.1,2978.9,9.4061944]
[1768979562383,2.80466291,2979.1,2978.8,0.002]
[1768979562588,9.29883811,2979.0,2978.8,0.555]
[1768979562796,9.29883811,2979.0,2978.8,3e-08]
[1768979563021,2.80466291,2979.1,2978.8,3e-08]
[1768979563426,12.10350102,2979.1,2978.8,3e-08]
[1768979563715,13.36925112,2979.1,2978.8,3e-08]
[1768979565231,13.36925112,2979.1,2978.8,0.55500003]
[1768979565722,10.37507884,2978.9,2978.4,0.555]
[1768979565892,10.03437529,2978.6,2978.0,0.55580008]
[1768979566351,11.58085697,2978.6,2978.0,0.55580008]
[1768979566632,10.03437529,2978.3,2977.6,10.49162607]
[1768979567333,10.03437529,2978.3,2977.4,10.49162607]
[1768979567631,10.03437529,2978.3,2977.5,11.04662607]
[1768979567836,10.03437529,2978.3,2977.5,0.555]
[1768979567995,11.42816604,2978.2,2977.5,0.555]
[1768979568198,11.42816604,2978.2,2977.1,11.04662607]
[1768979568624,11.42816604,2978.2,2977.1,0.555]
[1768979569447,11.42816604,2978.2,2977.1,11.04662607]
[1768979570149,0.554,2978.1,2977.1,11.60162607]
[1768979570352,10.03357521,2978.0,2977.2,10.49162607]
[1768979570737,10.03357521,2978.0,2977.1,2.71724129]
[1768979571049,10.03357521,2978.0,2977.1,1.11]
[1768979571657,10.03357521,2977.9,2977.1,1e-08]
[1768979572222,10.03357521,2977.9,2977.3,0.002]
[1768979572459,10.03357521,2977.9,2977.0,1.03160003]
[1768979572701,6.71596976,2978.0,2976.7,0.55500001]
[1768979572702,10.03357521,2977.2,2976.7,0.55500001]
[1768979572965,10.03357521,2977.2,2976.6,0.555]
[1768979572966,9.21818682,2977.0,2976.3,10.49162607]
[1768979573138,1.55843752,2977.1,2976.3,10.49162607]
[1768979573139,9.77318682,2977.1,2976.3,10.49162607]
[1768979573338,9.21818682,2977.0,2976.2,1.66500001]
[1768979574741,9.21818682,2977.0,2976.2,12.71162608]
[1768979574937,0.555,2976.9,2976.2,12.71162608]
[1768979575144,11.01089389,2976.8,2976.2,1e-08]
[1768979575381,10.16157521,2976.7,2975.9,0.002]
[1768979575563,10.03357521,2976.0,2975.0,12.97849384]
[1768979575756,10.03357521,2975.8,2975.0,2.48686777]
[1768979575976,10.03357521,2975.6,2975.0,0.0304115]
[1768979576175,10.58857521,2975.5,2975.0,0.0304115]
[1768979576776,0.0008,2976.3,2975.0,0.0304115]
[1768979576777,0.555,2975.6,2975.2,10.49162607]
[1768979576955,0.555,2975.6,2975.2,11.54382983]
[1768979577151,0.555,2975.6,2975.2,1.60720376]
[1768979577354,0.555,2975.6,2975.2,0.555]
[1768979578246,10.03357521,2975.7,2975.2,0.555]
[1768979578577,10.58857521,2976.1,2975.2,11.04662607]
[1768979579759,10.58857521,2976.1,2975.2,11.60162607]
[1768979579992,10.58857521,2976.1,2975.3,10.49162607]
[1768979580205,10.58857521,2976.1,2975.3,12.3240208]
[1768979581177,0.555,2976.1,2975.3,12.3240208]
[1768979581794,10.03437521,2976.3,2975.5,10.49162607]
[1768979581795,0.5558,2976.3,2975.5,10.49162607]
[1768979582284,0.5558,2976.3,2975.5,11.04662607]
[1768979582664,0.5558,2976.3,2975.7,10.49162607]
[1768979582894,10.03357521,2976.1,2975.5,0.555]
[1768979583415,10.03357521,2976.1,2975.2,1.11]
[1768979583984,10.03357521,2975.9,2975.2,1.11]
[1768979584194,10.03357521,2975.7,2975.2,1.11]
[1768979584516,0.555,2976.0,2975.3,10.49162607]
[1768979584718,0.555,2976.0,2975.3,11.98789711]
[1768979584876,0.555,2976.0,2975.5,10.49362607]
[1768979585075,0.555,2976.2,2975.5,10.49362607]
[1768979585419,0.59690545,2976.2,2975.5,10.49362607]
[1768979585575,10.63048066,2976.2,2975.5,10.49362607]
[1768979585777,11.65170328,2976.2,2975.5,10.49362607]
[1768979586024,11.65170328,2976.2,2975.5,0.002]
[1768979587211,10.03357521,2976.0,2975.5,0.557]
[1768979587778,10.03357521,2976.0,2975.5,3.91776365]
[1768979588113,0.0008,2976.3,2975.6,10.49162607]
[1768979588312,0.0008,2976.3,2975.8,10.49162607]
[1768979588610,0.0008,2976.3,2975.9,11.04662607]
[1768979589395,0.0008,2976.3,2975.9,11.60162607]
[1768979589908,0.0008,2976.3,2976.0,3.36021505]
[1768979591894,0.0008,2976.3,2976.0,3.91521505]
[1768979592095,0.0008,2976.3,2976.0,8.20586768]
[1768979593211,0.0008,2976.3,2976.1,10.49162607]
[1768979593414,0.0008,2976.6,2976.2,10.49162607]
[1768979593792,0.0008,2976.6,2976.3,17.21137877]
[1768979594020,0.0008,2976.6,2976.3,15.5726403]
[1768979594236,0.0008,2976.6,2976.3,12.21276395]
[1768979594442,10.03357521,2976.5,2976.1,0.555]
[1768979595306,10.03357521,2976.5,2976.0,4.47101506]
[1768979595918,10.03357521,2976.5,2976.0,0.55580008]
[1768979596307,9.89710652,2976.3,2976.0,0.55580008]
[1768979596506,0.0008,2976.6,2976.1,10.45279674]
[1768979596935,0.0008,2976.6,2976.1,11.00779674]
[1768979597604,9.89790652,2976.6,2976.2,0.555]
[1768979597840,9.89790652,2976.6,2976.1,1.11]
[1768979598048,9.89710652,2976.2,2975.5,0.557]
[1768979598213,9.89710652,2976.2,2975.7,0.002]
[1768979598535,9.89710652,2976.0,2975.5,0.557]
[1768979599337,9.89710652,2976.0,2975.5,1.112]
[1768979600198,9.89710652,2976.0,2975.5,4.47277111]
[1768979600400,9.89710652,2976.2,2975.6,10.45279674]
[1768979600598,0.55680008,2976.3,2975.6,10.45279674]
[1768979601633,9.8989066,2976.3,2975.6,10.45279674]
[1768979601826,9.8989066,2976.3,2975.6,11.00779674]
[1768979602136,9.8989066,2976.3,2975.6,14.36845914]
[1768979602336,9.8989066,2976.3,2975.6,15.1915495]
[1768979602536,9.8989066,2976.3,2975.6,0.555]
[1768979602537,0.04190545,2976.2,2975.6,0.555]
[1768979602706,9.89710652,2976.1,2975.6,0.555]
[1768979602907,9.8989066,2976.3,2975.6,11.00779674]
[1768979604236,9.8989066,2976.3,2975.6,11.56279674]
[1768979604429,0.00180008,2976.3,2975.7,10.45279674]
[1768979606521,9.89710652,2976.2,2975.7,0.555]
[1768979608746,9.89710652,2976.2,2975.7,11.00779674]
[1768979608956,9.89710652,2976.2,2975.7,1.11]
[1768979610344,9.89710652,2976.2,2975.7,0.65850902]
[1768979610552,9.89710652,2976.0,2975.6,1.11]
[1768979610759,9.89810652,2976.0,2975.5,1.112]
[1768979611055,9.89810652,2976.0,2975.3,0.002]
[1768979611470,9.78558306,2975.8,2975.2,1e-08]
[1768979611636,10.34058306,2975.8,2975.2,1e-08]
[1768979611950,9.82690893,2975.6,2975.2,1e-08]
[1768979613758,9.88118845,2975.5,2974.8,1e-08]
[1768979613929,10.43618845,2975.5,2974.8,1e-08]
[1768979614455,0.555,2975.4,2974.8,10.45279675]
[1768979614649,0.555,2975.4,2974.8,10.24920741]
[1768979614951,10.45210652,2975.4,2974.5,10.45279674]
[1768979615150,10.45210652,2975.4,2974.6,11.55357641]
[1768979615449,0.555,2975.4,2974.6,11.55357641]
[1768979615834,10.45210652,2975.4,2974.6,11.55357641]
[1768979616242,10.45210652,2975.4,2974.6,12.10857641]
[1768979617352,10.45210652,2975.4,2974.7,10.45279674]
[1768979617551,10.45210652,2975.4,2974.7,11.99983367]
[1768979618439,0.555,2975.4,2974.7,11.99983367]
[1768979618619,0.555,2975.4,2974.7,12.55483367]
[1768979619144,0.555,2975.4,2974.7,5.46363905]
[1768979619313,9.89710652,2975.6,2974.8,10.45279674]
[1768979619516,9.89710652,2975.6,2975.0,10.45279674]
[1768979619720,9.89710652,2975.4,2974.7,0.555]
[1768979620522,9.89710652,2975.4,2974.7,11.00779674]
[1768979621229,9.89710652,2975.4,2974.7,11.56279674]
[1768979622022,0.001,2975.2,2974.7,11.56279674]
[1768979622643,0.001,2975.2,2974.7,14.92437494]
[1768979622955,0.001,2975.2,2974.8,10.45279674]
[1768979623545,0.001,2975.2,2974.8,11.00779674]
[1768979624224,9.89810652,2975.2,2974.8,11.00779674]
[1768979624427,9.89810652,2975.2,2974.8,0.555]
[1768979624829,0.18397751,2974.8,2974.7,1.11]
[1768979626256,0.18397751,2974.8,2974.7,1.665]
[1768979626960,0.18397751,2974.8,2974.7,12.4971474]
[1768979628488,0.001,2975.2,2974.8,10.8321474]
[1768979628649,0.001,2975.2,2975.0,10.8321474]
[1768979629304,0.555,2975.7,2974.9,10.8321474]
[1768979629664,10.87563235,2975.7,2975.1,10.8321474]
[1768979631065,10.87563235,2975.7,2975.1,11.3871474]
[1768979631270,10.32063235,2975.9,2975.1,11.3871474]
[1768979631469,10.32063235,2975.7,2975.1,11.3871474]
[1768979631790,10.32063235,2975.7,2975.1,0.555]
[1768979633695,1.08766324,2975.8,2975.1,1.11]
[1768979633696,0.001,2975.2,2975.1,1.11]
[1768979635203,10.32163235,2975.2,2975.0,0.0016]
[1768979635505,10.32163235,2975.2,2974.7,2.22]
[1768979635992,10.32163235,2975.2,2974.7,2.775]
[1768979638216,10.70346408,2975.2,2974.7,2.775]
[1768979638509,0.001,2975.2,2974.8,10.8321474]
[1768979639818,10.32163235,2975.2,2974.7,14.1621474]
[1768979641071,10.32163235,2975.2,2974.7,14.7171474]
[1768979641612,0.0008,2975.3,2974.9,4.88887581]
[1768979641814,0.0008,2975.3,2975.0,11.38634716]
[1768979642526,0.00180008,2976.3,2975.3,10.83294748]
[1768979642737,0.04370553,2976.3,2975.5,10.8321474]
[1768979643093,10.32243243,2976.3,2975.5,10.8321474]
[1768979643404,10.32243243,2976.3,2975.5,11.3871474]
[1768979643584,10.32063235,2976.2,2975.5,11.3871474]
[1768979644040,10.32163235,2976.0,2975.6,0.555]
[1768979644216,10.32163235,2976.0,2975.5,0.555]
[1768979644390,10.32163235,2976.0,2975.5,2e-08]
[1768979644908,10.3625378,2975.9,2975.5,2e-08]
[1768979645120,10.32063235,2975.9,2975.5,2e-08]
[1768979645839,10.32063235,2975.7,2975.5,2e-08]
[1768979646129,10.32063235,2975.5,2975.3,0.00080008]
[1768979646324,10.32063235,2975.5,2975.0,0.00080008]
[1768979646526,0.00080008,2975.6,2975.0,10.83294748]
[1768979648301,0.00080008,2975.6,2975.0,11.38794748]
[1768979648641,0.556,2976.0,2975.4,10.8321474]
[1768979648995,10.87663235,2976.0,2975.4,10.8321474]
[1768979649230,11.96848613,2976.0,2975.4,10.8321474]
[1768979650804,11.96848613,2976.0,2975.4,11.3871474]
[1768979651942,11.96848613,2976.0,2975.5,10.8321474]
[1768979652241,0.556,2976.0,2975.5,10.8321474]
[1768979652601,0.001,2976.0,2975.5,10.8321474]
[1768979652796,0.00180008,2976.3,2975.5,14.19292199]
[1768979653045,0.00180008,2976.3,2975.6,10.8321474]
[1768979653206,10.32243243,2976.3,2975.6,10.8321474]
[1768979653414,11.41017567,2976.3,2975.6,10.8321474]
[1768979654007,1.08954332,2976.3,2975.8,10.8321474]
[1768979654219,11.41017567,2976.3,2975.6,11.3871474]
[1768979654454,10.32063235,2976.1,2975.6,0.555]
[1768979654663,10.32063235,2975.9,2975.6,0.555]
[1768979655651,10.32063235,2975.9,2975.5,0.555]
[1768979655853,10.32063235,2975.9,2975.5,1.11]
[1768979658121,10.32063235,2975.9,2975.5,1.02603865]
[1768979658332,10.32063235,2975.9,2975.5,0.76353033]
[1768979658647,11.40819559,2975.9,2975.4,1e-08]
[1768979659147,10.64886768,2975.7,2975.4,1e-08]
[1768979659545,0.001,2975.7,2975.4,1e-08]
[1768979659849,0.001,2975.7,2975.4,0.00449001]
[1768979660651,0.001,2975.7,2975.4,0.555]
[1768979660863,0.001,2975.7,2975.3,10.30758895]
[1768979661452,10.64886768,2975.7,2975.3,10.30758895]
[1768979661922,0.555,2976.1,2975.4,10.30678879]
[1768979662123,11.20286768,2976.1,2975.4,10.30678879]
[1768979662452,11.77234499,2976.0,2975.4,10.30678879]
[1768979663152,11.77234499,2976.0,2975.4,10.86178879]
[1768979665543,11.77234499,2976.0,2975.5,10.30678879]
[1768979665742,10.64786768,2976.0,2975.5,10.30678879]
[1768979665945,10.64786768,2976.1,2975.6,10.30678879]
[1768979668267,10.64786768,2976.1,2975.6,10.86178879]
[1768979668573,10.64786768,2976.2,2975.6,10.86178879]
[1768979669272,10.64786768,2976.2,2975.6,7.49657341]
[1768979669478,11.2626513,2976.2,2975.6,7.49657341]
[1768979670938,11.2626513,2976.2,2975.6,4.68834505]
[1768979671241,11.2626513,2976.2,2975.6,1.112]
[1768979671441,11.2626513,2976.2,2975.6,0.98472166]
[1768979671643,10.64786768,2976.0,2975.4,1.1099788]
[1768979671946,10.64786768,2975.8,2975.4,1.1099788]
[1768979672155,10.64786768,2975.8,2975.4,1.1119788]
[1768979673069,10.64786768,2975.8,2975.4,11.41876759]
[1768979673278,10.64786768,2975.8,2975.3,0.00080016]
[1768979673437,10.64786768,2975.6,2975.3,0.00080016]
[1768979674403,10.64786768,2975.6,2975.2,10.30878879]
[1768979674561,10.64866784,2975.6,2975.2,10.30878879]
[1768979675459,0.00080016,2975.6,2975.2,10.30878879]
[1768979675659,0.00080016,2975.6,2975.2,10.86378879]
[1768979676892,0.00080016,2975.6,2975.3,10.30678879]
[1768979677106,0.001,2975.9,2975.4,10.30678879]
[1768979677866,10.64886768,2975.9,2975.4,10.30678879]
[1768979678072,10.64886768,2975.9,2975.4,10.86178879]
[1768979678633,0.555,2976.0,2975.6,4.88604693]
[1768979678901,11.20466776,2976.3,2975.7,10.30678879]
[1768979680504,11.20466776,2976.3,2975.7,10.86178879]
[1768979681509,11.20466776,2976.3,2975.7,12.82814372]
[1768979681679,0.55680008,2976.3,2975.7,12.82814372]
[1768979681881,0.55680008,2976.3,2975.8,10.30678879]
[1768979682220,0.00180008,2976.3,2975.8,10.30678879]
[1768979682875,0.00180008,2976.3,2975.8,10.86178879]
[1768979683080,0.00180008,2976.3,2975.8,11.60288838]
[1768979683704,0.00180008,2976.3,2975.8,12.15788838]
[1768979684012,0.00180008,2976.3,2975.9,10.30678879]
[1768979684178,0.001,2976.1,2975.9,10.30678879]
[1768979684383,0.00180008,2976.3,2975.9,10.30678879]
[1768979685316,0.00180008,2976.3,2975.9,10.86178879]
[1768979685815,0.00180008,2976.3,2975.9,12.52462795]
[1768979687979,0.00180008,2976.3,2976.0,10.7744216]
[1768979690493,0.00180008,2976.3,2976.0,11.3294216]
[1768979691417,10.2606621,2976.3,2976.0,0.555]
[1768979692842,0.00180008,2976.3,2976.0,0.555]
[1768979693008,0.00180008,2976.3,2976.0,1.11]
[1768979694333,1.03235038,2975.9,2975.8,0.555]
[1768979694494,11.2912124,2975.9,2975.8,0.555]
[1768979694700,11.2912124,2975.9,2975.7,0.555]
[1768979694895,11.2912124,2975.9,2975.7,0.19902465]
[1768979695111,11.2912124,2975.9,2975.7,1e-08]
[1768979695611,1.03235038,2975.9,2975.7,0.55500001]
[1768979695928,1.03235038,2975.9,2975.7,11.24541285]
[1768979696106,0.001,2976.1,2975.7,11.24541285]
[1768979696704,10.25986202,2976.1,2975.7,11.24541285]
[1768979697944,10.25986202,2976.1,2975.7,11.80041285]
[1768979699941,0.001,2976.1,2975.7,11.80041285]
[1768979700144,0.001,2976.1,2975.8,10.7744216]